Cogmind - Beta 12 @@@ ROGUE MODE // 2023.06.20 @ 00:31:26 Player: szymekc Result: Destroyed by H-77 Assassin with High-powered Shotgun Performance ------------- Evolutions (6) 3000 Regions Visited (21) 4200 Robots Destroyed (320) 1600 Value Destroyed (14170) 14170 Prototype IDs (16) 320 Alien Tech Used (0) 0 Bonus (9002) 9002 TOTAL SCORE: 32292 Bonus ------- Triggered High Security 500 High Alert Combat Kills 2889 Follower Combat Kills 3176 Entered Garrisons 600 Used RIF Installer 2000 Entered DSFs 500 Friendly Fire -663 Cogmind --------- Core Integrity 0/1150 Matter 134/300 Energy 435/450 System Corruption 20% Temperature Cool (0) Movement Treading (160) Location -4/Factory Parts ------- > --- POWER (2) -------- (None) > --- PROPULSION (6) --- Heavy Treads Improved Heavy Treads > --- UTILITY (9) ------ Improved Heat Sink Improved Heat Sink (fused) Improved Heat Sink Improved Heat Sink Huge Storage Unit Energy Well Advanced Sensor Array Advanced Signal Interpreter > --- WEAPON (2) ------- Micro-nuke Launcher > --- INVENTORY (25) --- Advanced Thermal Shield Long-range Tractor Beam Peak State ------------ > --- POWER ------------ Antimatter Reactor Antimatter Reactor > --- PROPULSION ------- Heavy Treads Improved Heavy Treads Improved Heavy Siege Treads > --- UTILITY ---------- Huge Storage Unit Damper Plating Beam Splitter Relay Coupler [NC] Relay Coupler [Duelist] Relay Coupler [Sentry] > --- WEAPON ----------- Advanced Plasma Cannon Remote Datajack > --- INVENTORY -------- Micro Fission Core Micro Fission Core Heavy Treads Advanced Heavy Siege Treads Field Propulsion Drive Field Propulsion Drive Field Propulsion Drive Field Propulsion Drive Advanced Cooling System Large Storage Unit Energy Well Compact Matter Pod Improved Heavy Armor Plating Relay Coupler [NC] Relay Coupler [Swarmer] Relay Coupler [Demolisher] Relay Coupler [Hunter] Long-range Tractor Beam Advanced Plasma Rifle Nova Cannon Micro-nuke Launcher [Rating: 122] Favorites ----------- Power Antimatter Reactor Engine Reinforced Ion Engine Power Core Micro Fission Core Reactor Antimatter Reactor Propulsion Light Treads Treads Light Treads Leg Carbon-fiber Leg Wheel Armored Huge Wheel Hover Unit Gravmag System Flight Unit Field Propulsion Drive Utility Huge Storage Unit Device Advanced Cooling System Storage Huge Storage Unit Processor Advanced Targeting Computer Hackware Relay Coupler [Grunt] Protection Light Armor Plating Weapon Remote Datajack Energy Gun Pulse Rifle Energy Cannon Advanced Plasma Cannon Ballistic Gun High-powered Shotgun Ballistic Cannon Flak Cannon Launcher Improved Grenade Launcher Special Weapon Remote Datajack Impact Weapon Makeshift Hammer Slashing Weapon Dual-blade Saw Piercing Weapon Force Lance Special Melee Weapon Improved Datajack Build | -11 -10 -10 -9 -9 -9 -8 -8 -8 -8 -7 -7 -6 -6 -5 -5 -5 -5 -5 -4 -4 -4 ------- Run | Jun Mat Min Mat Min Exi Min Mat Gar Mat Fac Gar Fac DSF Fac Was Fac Gar Fac Fac Was Fac Slots Evolved 12 | . . . 2 . . . 2 . . 2 . 2 . 2 . . . . 2 . . Power 1 | . . . . . . . . . . . . . . 1 . . . . . . . Propulsion 4 | . . . 1 . . . 1 . . . . . . . . . . . 2 . . Utility 7 | . . . 1 . . . 1 . . 2 . 2 . 1 . . . . . . . Weapon . | . . . . . . . . . . . . . . . . . . . . . . Parts Attached 453 | . 11 7 33 7 7 7 41 45 16 26 24 2 12 29 8 3 14 8 1 8 144 Power 49 | . 1 1 2 3 . . 2 3 1 3 2 . 1 4 2 . 1 . . 2 21 Engine 13 | . 1 1 2 3 . . 2 2 . . . . . 2 . . . . . . . Core 19 | . . . . . . . . 1 1 3 2 . . 1 . . . . . . 11 Reactor 17 | . . . . . . . . . . . . . 1 1 2 . 1 . . 2 10 Propulsion 100 | . 2 2 9 1 . . 12 11 2 4 5 . 2 2 . . 1 . 1 . 46 Treads 60 | . 2 2 9 1 . . 11 7 . . 2 . 2 2 . . 1 . 1 . 20 Leg 9 | . . . . . . . . 4 2 2 1 . . . . . . . . . . Wheel 2 | . . . . . . . . . . 1 1 . . . . . . . . . . Hover 2 | . . . . . . . . . . 1 1 . . . . . . . . . . Flight 27 | . . . . . . . 1 . . . . . . . . . . . . . 26 Utility 165 | . 4 2 6 1 6 1 9 6 4 7 10 2 6 14 6 2 9 8 . 6 56 Device 65 | . 2 1 2 . . . 5 1 1 2 1 1 2 7 3 1 5 1 . 5 25 Storage 14 | . 1 . 1 . 3 . 1 2 . . . . . 1 . . . 2 . . 3 Processor 8 | . . . . . . . 1 1 . . 1 . . 1 1 . . . . . 3 Hackware 33 | . . . . . . . . 2 . 3 5 1 3 5 . 1 4 4 . . 5 Protection 45 | . 1 1 3 1 3 1 2 . 3 2 3 . 1 . 2 . . 1 . 1 20 Artifact . | . . . . . . . . . . . . . . . . . . . . . . Weapon 139 | . 4 2 16 2 1 6 18 25 9 12 7 . 3 9 . 1 3 . . . 21 Energy Gun 9 | . . . . . . . 3 . . 3 2 . . . . . . . . . 1 Energy Cannon 16 | . . . . . . . . . 3 . . . 2 3 . . . . . . 8 Ballistic Gun 38 | . 2 2 8 . 1 2 8 9 3 3 . . . . . . . . . . . Ballistic Cannon 9 | . . . 1 1 . 1 2 3 1 . . . . . . . . . . . . Launcher 40 | . 1 . 4 1 . 3 4 8 2 3 1 . 1 4 . . 1 . . . 7 Special Weapon 7 | . . . . . . . . . . . 2 . . 1 . 1 2 . . . 1 Impact Weapon 14 | . 1 . 3 . . . 1 5 . 3 1 . . . . . . . . . . Slashing Weapon 1 | . . . . . . . . . . . 1 . . . . . . . . . . Piercing Weapon 4 | . . . . . . . . . . . . . . . . . . . . . 4 Special Melee Weapon 1 | . . . . . . . . . . . . . . 1 . . . . . . . Unidentified Prototypes 10 | . . . 1 . . . 3 . . 1 . . . 1 . . . . . 1 3 Corrupted Parts 4 | . . 2 . . . . . . . . . . 2 . . . . . . . . System Corruption 23 | . . 9 . . . . . . . . . . 14 . . . . . . . . Parts Lost 49 | . . . 1 1 . 2 3 2 6 1 5 . . 3 . . 1 . . . 24 Power 9 | . . . . 1 . . . 1 . . . . . 1 . . . . . . 6 Propulsion 11 | . . . . . . . 1 . 3 1 2 . . . . . . . . . 4 Utility 18 | . . . 1 . . 1 2 1 1 . 3 . . 1 . . 1 . . . 7 Weapon 11 | . . . . . . 1 . . 2 . . . . 1 . . . . . . 7 Highest Loss Streak 16 | . . . 1 1 . 2 2 1 6 1 3 . . 1 . . 1 . . . 16 To Critical Strikes . | . . . . . . . . . . . . . . . . . . . . . . Average Slot Usage (%) 88 | . 97 99 99 99 99 99 99 99 99 87 84 86 81 80 76 70 69 68 68 68 78 Engine 5 | . 14 14 11 10 11 11 9 6 8 . . . . 2 . . . . . . . Core 2 | . . . . . . . . 2 . 6 6 6 4 1 . . . . . . 6 Reactor 2 | . . . . . . . . . . . . . 1 6 11 11 11 11 10 10 2 Treads 17 | . 23 27 33 33 33 33 35 28 . . 1 13 13 11 11 11 11 11 15 15 3 Leg 3 | . 4 . . . . . . 7 36 11 6 . . . . . . . . . . Flight 1 | . . . . . . . . . . . . . . . . . . . . . 16 Device 5 | . 3 . 6 . . . 11 7 . . . 6 4 3 6 11 5 5 5 5 11 Storage 7 | . 14 14 11 11 11 11 9 9 9 7 7 6 6 5 5 5 5 5 5 5 . Processor 2 | . . . . . . . 4 9 . . 2 . . . . . . . . . 5 Hackware 11 | . . . . . . . . 3 18 31 24 33 28 28 21 11 16 14 15 15 18 Protection 8 | . 7 13 15 22 21 21 10 5 8 4 7 6 6 5 5 5 5 5 5 5 2 Energy Cannon 1 | . . . . . . . . . 4 . . . 3 4 5 5 5 5 5 5 3 Ballistic Gun 6 | . 16 25 15 18 21 11 4 6 8 6 . . . . . . . . . . . Ballistic Cannon 1 | . . . 3 3 . 2 7 1 4 . . . . . . . . . . . . Launcher 2 | . 9 2 1 . . 8 . 5 . . 3 . . . . . 1 . . . . Special Weapon 1 | . . . . . . . . . . . 4 6 6 4 5 5 3 5 5 5 3 Impact Weapon 1 | . . . 1 . . . 2 3 . 3 5 . . . . . . . . . . Naked Turns . | . . . . . . . . . . . . . . . . . . . . . . Heaviest Build 187 | 14 23 23 63 63 63 63 108 107 102 104 105 111 132 148 179 179 187 182 177 177 171 Greatest Support 220 | 20 40 42 62 62 62 62 82 80 60 28 145 145 150 150 145 145 145 145 220 220 220 Greatest Overweight (x) 34 | . . 1 1 1 1 1 1 1 5 5 34 . . 1 1 1 1 1 . . 6 Average Overweight (x) . | . . . . . . . . . 1 3 2 . . . . 1 1 1 . . . Largest Inventory Capacity 35 | 8 10 10 20 20 35 20 25 25 25 25 25 25 25 25 25 25 25 25 25 25 25 Average Capacity 20 | 8 9 10 16 20 20 20 24 24 25 25 25 25 25 25 25 25 25 25 25 25 7 Most Carried 25 | 6 10 10 20 20 20 20 25 25 25 25 25 24 25 25 25 25 25 25 24 25 25 Average Carried 19 | 6 8 9 15 19 19 19 23 24 24 24 24 23 24 24 23 24 24 23 23 24 4 Final Capacity 25 | 8 10 10 20 20 20 20 25 25 25 25 25 25 25 25 25 25 25 25 25 25 25 Final Carried 25 | 6 10 10 20 20 20 20 25 25 25 25 25 23 25 25 25 25 25 25 24 25 2 Class Distribution -------------------- 36% | Scavenger-Mutant 26% | Bothacker-Mutant 22% | Mutant 7% | Botlord-Mutant 4% | Sprinter Dominant Class ---------------- Mutant | -10/Materials Mutant | -10/Mines Mutant | -9/Materials Scavenger-Mutant | -9/Mines Scavenger-Mutant | -9/Exiles Scavenger-Mutant | -8/Mines Scavenger-Mutant | -8/Materials Scavenger-Mutant | -8/Garrison Scavenger-Mutant | -8/Materials Mutant | -7/Factory Bothacker-Mutant | -7/Garrison Bothacker-Mutant | -6/Factory Bothacker-Mutant | -6/DSF Bothacker-Mutant | -5/Factory Bothacker-Mutant | -5/Waste Bothacker-Mutant | -5/Factory Bothacker-Mutant | -5/Garrison Botlord-Mutant | -5/Factory Bothacker-Mutant | -4/Factory Bothacker-Mutant | -4/Waste Sprinter | -4/Factory Resources | -11 -10 -10 -9 -9 -9 -8 -8 -8 -8 -7 -7 -6 -6 -5 -5 -5 -5 -5 -4 -4 -4 ----------- Run | Jun Mat Min Mat Min Exi Min Mat Gar Mat Fac Gar Fac DSF Fac Was Fac Gar Fac Fac Was Fac Matter Collected 11142 | 200 115 456 989 300 140 182 1028 1434 732 680 1008 . 221 839 208 72 638 216 . 140 1544 Remotely 589 | . . . . . . . . . . . . . . . . . 306 . . . 283 Salvage Created 9848 | . 221 240 974 281 . 151 1490 1251 543 490 1288 . 97 325 . 102 427 254 . 331 1383 Parts 535 | . 21 24 83 16 . 10 86 54 37 20 37 . 9 12 . 4 20 10 . 2 90 Haulers Intercepted 10 | . 1 . 1 . . . 5 . 3 . . . . . . . . . . . . Recyclers Shooed 8 | . 1 . 2 . . . 3 . 2 . . . . . . . . . . . . Parts Field Recycled . | . . . . . . . . . . . . . . . . . . . . . . Retrieved Matter . | . . . . . . . . . . . . . . . . . . . . . . Parts Self-Destructed . | . . . . . . . . . . . . . . . . . . . . . . Prevented . | . . . . . . . . . . . . . . . . . . . . . . Kills | -11 -10 -10 -9 -9 -9 -8 -8 -8 -8 -7 -7 -6 -6 -5 -5 -5 -5 -5 -4 -4 -4 ------- Run | Jun Mat Min Mat Min Exi Min Mat Gar Mat Fac Gar Fac DSF Fac Was Fac Gar Fac Fac Was Fac Combat Hostiles Destroyed 271 | . 12 11 31 12 . 10 29 37 17 11 23 . 4 14 . 3 24 3 . 1 29 Melee 7 | . . . . . . . . . . . 3 . . . . . . . . . 4 Guns 87 | . 2 11 17 10 . 1 10 19 8 8 1 . . . . . . . . . . Cannons 56 | . . . 5 1 . 1 13 2 6 . . . 1 1 . 3 4 2 . . 17 AOE 115 | . 10 . 9 1 . 8 6 16 3 3 19 . 3 11 . . 19 . . . 7 Classes Destroyed 18 | . 5 1 4 1 . . . 1 1 . 2 . . . . . . 1 . 1 1 Worker 8 | . . 1 4 . . . 1 . . . . . . 1 . . . . . . 1 Builder 12 | . . . 2 1 . . 1 . 1 . . . . 2 . . . . . . 5 Hauler 10 | . 1 . 1 . . . 5 . 3 . . . . . . . . . . . . Recycler 8 | . . . 1 . . 1 5 . . . . . . . . . . . . . 1 Mechanic 1 | . . . . . . . . . . . . . . . . . . . . . 1 Operator 2 | . 1 . . . . . . . 1 . . . . . . . . . . . . Watcher 7 | . 1 . . . . . 4 . 1 . . . 1 . . . . . . . . Swarmer 96 | . 6 9 10 5 . 7 9 14 4 . 6 . 3 9 . 1 13 . . . . Grunt 94 | . 6 2 12 6 . 3 12 10 9 8 11 . 1 2 . 1 8 . . . 3 Brawler 3 | . . . 1 . . . 1 . . . . . . . . . 1 . . . . Duelist 5 | . . . . 1 . . 1 1 1 . . . . . . . . 1 . . . Sentry 28 | . . . 8 . . . 6 9 1 1 . . . . . . . 1 . . 2 Specialist 5 | . . . . . . . . . . . 1 . . . . 1 1 . . . 2 Hunter 6 | . . . . . . . . . 2 1 . . . . . . . . . . 3 Programmer 29 | . . . . . . . . 3 . 1 4 . . 3 . . . 1 . . 17 Behemoth 2 | . . . . . . . . . . . 1 . . . . . 1 . . . . Compactor 1 | . . . . . . . . . . . . . . . . . . . . 1 . Striker 2 | . . . . . . . . . . . . . . . . . . . . . 2 Surgeon 1 | . . . . . . . . . . . . . . . . . . 1 . . . Best Kill Streak 14 | . 5 4 6 3 . 6 7 6 6 4 6 . 3 14 . 1 12 1 . 1 12 Combat Bots Only 12 | . 4 3 5 3 . 6 6 6 5 4 6 . 3 11 . 1 12 1 . 1 6 Max Kills in Single Turn 4 | . 2 1 2 1 . 2 2 3 2 2 3 . 4 3 . 1 2 1 . 1 3 Gunslinging . | . . . . . . . . . . . . . . . . . . . . . . Exploded 3 | . 2 . 2 1 . 2 1 3 2 2 3 . 3 3 . . 2 . . . 1 Melee 1 | . . . . . . . . . . . 1 . . . . . . . . . 1 Uniques/NPCs Destroyed . | . . . . . . . . . . . . . . . . . . . . . . Combat | -11 -10 -10 -9 -9 -9 -8 -8 -8 -8 -7 -7 -6 -6 -5 -5 -5 -5 -5 -4 -4 -4 -------- Run | Jun Mat Min Mat Min Exi Min Mat Gar Mat Fac Gar Fac DSF Fac Was Fac Gar Fac Fac Was Fac Damage Taken 18030 | . 277 299 919 427 . 343 1226 1100 1157 812 1378 . 113 1625 28 193 805 420 . 57 6851 Core 2216 | . 23 27 153 96 . 27 89 112 127 98 160 . . 80 . 21 35 12 . . 1156 Absorbed by Shields 481 | . . . . . . . . . . . . . 36 153 9 50 78 126 . 29 . Reduced by Siege Mode 43 | . . . . . . . . . . . . . . . . . . . . . 43 Regen/Repaired (Parts) 1677 | . . . 226 . . . 336 . . 34 . . . . 133 . 28 920 . . . Core Remaining (%) 71 | 100 . 80 . . . 31 . . 40 . 63 . 100 . . . . 85 . . . Volleys Fired 878 | . 25 19 80 30 . 20 89 73 49 43 36 . 19 69 23 14 52 37 . 38 162 Largest 2 | . 2 2 2 2 . 1 2 2 2 2 2 . 1 2 1 1 2 1 . 1 1 Hottest 196 | . 40 45 62 64 . 39 107 72 103 88 72 . 98 196 98 98 147 98 . 98 105 Shots Fired 1258 | . 34 39 148 59 . 20 161 127 91 85 54 . 19 81 24 14 63 37 . 38 164 Gun 531 | . 21 38 115 51 . 5 82 84 49 81 5 . . . . . . . . . . Cannon 435 | . . . 22 7 . 7 69 8 38 . . . 8 37 10 13 36 20 . 28 132 Launcher 179 | . 13 1 11 1 . 8 10 35 4 4 38 . 1 15 . . 23 . . . 15 Special 113 | . . . . . . . . . . . 11 . 10 29 14 1 4 17 . 10 17 Kinetic 607 | . 21 38 137 58 . 12 114 92 74 61 . . . . . . . . . . . Thermal 339 | . . . . . . . 17 . 13 20 5 . 8 37 10 13 36 20 . 28 132 Explosive 179 | . 13 1 11 1 . 8 10 35 4 4 38 . 1 15 . . 23 . . . 15 Electromagnetic 20 | . . . . . . . 20 . . . . . . . . . . . . . . Robot Hit Streak 21 | . 8 4 7 5 . 11 15 21 10 13 9 . 10 10 7 9 10 6 . 11 12 Robot Miss Streak 8 | . 2 3 4 4 . 3 6 3 8 2 1 . 2 2 1 4 3 1 . 2 3 Penetration Max . | . . . . . . . . . . . . . . . . . . . . . . Secondary Targets 5 | . . 2 . 1 . . . 2 . . . . . . . . . . . . . Max Gunslinging Chain 1 | . . 1 . 1 . . . 1 . . . . . . . . . . . . . Shots Hit Robots 836 | . 15 22 92 39 . 12 126 82 71 65 54 . 12 46 20 7 22 27 . 29 95 Core Hits 609 | . 32 13 60 20 . 17 96 75 83 27 45 . 6 23 . 3 48 3 . 2 56 Critical Kills 8 | . . 1 1 . . . . 1 1 . . . . 2 . . . . . 1 1 Critical Parts Destroyed 12 | . . . 1 1 . . 1 2 . 1 6 . . . . . . . . . . Critical Strikes 27 | . . 1 3 1 . . 4 3 1 3 7 . . 2 . . . . . 1 1 Burn 4 | . . . . . . . 2 . . 2 . . . . . . . . . . . Meltdown 5 | . . . . . . . . . 1 . . . . 2 . . . . . 1 1 Destroy 7 | . . 1 2 1 . . 1 1 . 1 . . . . . . . . . . . Blast 2 | . . . 1 . . . 1 . . . . . . . . . . . . . . Smash 8 | . . . . . . . . 2 . . 6 . . . . . . . . . . Sever 1 | . . . . . . . . . . . 1 . . . . . . . . . . Melee Attacks 128 | . 3 . 8 . . . 9 19 . 7 63 . . . . . . . . . 19 Impact 103 | . 3 . 8 . . . 9 19 . 7 57 . . . . . . . . . . Slashing 6 | . . . . . . . . . . . 6 . . . . . . . . . . Piercing 19 | . . . . . . . . . . . . . . . . . . . . . 19 Sneak Attacks 7 | . . . . . . . 3 . . . . . . . . . . . . . 4 Combat Hostiles 4 | . . . . . . . . . . . . . . . . . . . . . 4 Follow-up Attacks . | . . . . . . . . . . . . . . . . . . . . . . Damage Inflicted 34660 | . 840 347 2261 745 . 988 3267 4201 1827 1367 4333 . 526 2052 301 232 3829 736 . 754 6054 Guns 6448 | . 151 343 1320 546 . 31 1105 1024 720 1123 85 . . . . . . . . . . Cannons 8409 | . . . 302 147 . 145 1100 186 560 . . . 166 732 301 218 438 518 . 754 2842 Explosions 15828 | . 688 . 619 39 . 785 639 2166 510 235 2002 . 360 1301 . . 3391 195 . . 2898 Melee 3708 | . . . . . . . 416 825 . . 2246 . . . . . . . . . 221 Ramming 267 | . 1 4 20 13 . 27 7 . 37 9 . . . 19 . 14 . 23 . . 93 Kinetic 7834 | . 151 343 1622 693 . 176 1717 1210 1112 810 . . . . . . . . . . . Thermal 6995 | . . . . . . . 265 . 168 313 85 . 166 732 301 218 438 713 . 754 2842 Explosive 15601 | . 656 . 619 39 . 785 639 2166 510 235 2002 . 360 1301 . . 3391 . . . 2898 Electromagnetic 255 | . 32 . . . . . 223 . . . . . . . . . . . . . . Impact 3380 | . . . . . . . 416 825 . . 2139 . . . . . . . . . . Slashing 107 | . . . . . . . . . . . 107 . . . . . . . . . . Piercing 221 | . . . . . . . . . . . . . . . . . . . . . 221 Highest Corruption 20 | . 1 10 . . . . . 2 2 1 9 . 14 9 4 4 4 4 . 1 20 Average Corruption 4 | . 1 1 . . . . . 1 2 1 6 . 12 7 4 4 4 4 . 1 5 Corruption Purged 5 | . . . . . . . . . . . . . . 5 . . . . . . . Corruption Blocked 16 | . . . . . . . . . . . . . . 16 . . . . . . . Effects 276 | . . 12 . . . . . 10 16 1 61 . 1 31 17 11 57 23 . . 36 Message Errors 55 | . . 1 . . . . . 2 1 . 14 . . 7 5 4 5 7 . . 9 Matter Fused 66 | . . 3 . . . . . 2 3 . 13 . 1 10 6 3 14 4 . . 7 Heat Flow Errors 36 | . . 2 . . . . . . 7 1 4 . . 4 1 1 10 2 . . 4 Energy Discharges 32 | . . 2 . . . . . 1 . . 11 . . 2 1 . 5 4 . . 6 Parts Rejected 4 | . . 1 . . . . . . . . 1 . . . . . . . . . 2 Parts Fused 9 | . . . . . . . . 1 . . 2 . . 2 . 1 2 . . . 1 Data Loss (minor) 29 | . . 1 . . . . . 1 4 . 7 . . 1 2 . 9 3 . . 1 Data Loss (major) 13 | . . 1 . . . . . 1 . . 3 . . . . . 6 1 . . 1 Misfires 20 | . . 1 . . . . . 1 . . 3 . . 4 1 1 6 1 . . 2 Alerts 7 | . . . . . . . . . 1 . 3 . . 1 1 . . . . . 1 Misdirections 2 | . . . . . . . . . . . . . . . . . . . . . 2 Weapon Failures 3 | . . . . . . . . 1 . . . . . . . 1 . 1 . . . Overload Shots . | . . . . . . . . . . . . . . . . . . . . . . Overflow Damage 1854 | . . . 29 . . 51 142 228 2 . 745 . . 199 . 3 83 25 . . 347 Projectiles 303 | . . . . . . . . . 2 . . . . 31 . 3 . 25 . . 242 Explosions 560 | . . . 29 . . 51 46 17 . . 61 . . 168 . . 83 . . . 105 Melee 991 | . . . . . . . 96 211 . . 684 . . . . . . . . . . Knockbacks 40 | . . . 1 4 . 1 11 3 12 . 7 . . . . . . . . . 1 Impact 8 | . . . 1 . . 1 . 1 . . 4 . . . . . . . . . 1 Kinetic 25 | . . . . 4 . . 10 2 9 . . . . . . . . . . . . Secondary 7 | . . . . . . . 1 . 3 . 3 . . . . . . . . . . Self-Inflicted Damage 1472 | . . 2 35 . . 89 37 61 . 40 46 . 65 471 . . 45 114 . . 467 Shots 33 | . . 1 1 . . 4 2 2 . 2 2 . 1 8 . . 1 1 . . 8 Rammed 34 | . 2 4 2 3 . 2 1 . . 1 . . . 2 . 1 . 2 . . 14 Targets Rammed 42 | . 2 4 5 3 . 3 1 . 2 1 . . . 2 . 1 . 2 . . 16 Kicked 2 | . . . . . . . . . 2 . . . . . . . . . . . . Crushed 6 | . . . 3 . . 1 . . . . . . . . . . . . . . 2 Highest Temperature 448 | . 34 282 210 159 . 148 150 233 248 141 268 . 54 448 364 198 271 265 12 399 370 Average Temperature 81 | . 15 97 40 48 . 63 38 79 57 49 68 . 26 103 57 45 97 113 6 84 83 Received Heat Transfer 2818 | . 114 33 285 171 . 72 441 306 198 201 111 . 9 88 . 53 138 67 . . 531 Effects 26 | . . 2 . . . . . . . . 1 . . 9 2 . 3 . . 5 4 Shutdowns 7 | . . . . . . . . . . . . . . 4 1 . . . . 2 . Energy Bleed 8 | . . . . . . . . . . . . . . 3 . . 1 . . 1 3 Interference 9 | . . 2 . . . . . . . . 1 . . 1 . . 2 . . 2 1 Matter Decay 1 | . . . . . . . . . . . . . . . 1 . . . . . . Damage (minor) 1 | . . . . . . . . . . . . . . 1 . . . . . . . Siege Activations 6 | . . . . . . . . . . . . . . . . . 2 . . . 4 Total Turns 88 | . . . . . . . . . . . . . . . . . 13 . . . 75 Longest Duration 31 | . . . . . . . . . . . . . . . . . 12 . . . 31 Robots Corrupted . | . . . . . . . . . . . . . . . . . . . . . . Combat Hostiles . | . . . . . . . . . . . . . . . . . . . . . . Parts Fried 17 | . . . . . . . 4 . . . 13 . . . . . . . . . . Impact Corruptions 27 | . . . . . . . 2 5 . . 20 . . . . . . . . . . Robots Melted 7 | . . . . . . . . . 1 . . . . 2 . . 1 1 . 1 1 Combat Hostiles 6 | . . . . . . . . . . . . . . 2 . . 1 1 . 1 1 Parts Melted 21 | . . . . . . . 1 . 1 1 . . . 6 . . 4 1 . 3 4 Heat Transferred 9161 | . . . . . . . 740 . 259 777 148 . 250 976 438 326 625 850 . 1150 2622 Parts Sabotaged . | . . . . . . . . . . . . . . . . . . . . . . Parts Stolen . | . . . . . . . . . . . . . . . . . . . . . . Parts Stripped . | . . . . . . . . . . . . . . . . . . . . . . Power Chain Reactions . | . . . . . . . . . . . . . . . . . . . . . . Missiles Intercepted . | . . . . . . . . . . . . . . . . . . . . . . Alert | -11 -10 -10 -9 -9 -9 -8 -8 -8 -8 -7 -7 -6 -6 -5 -5 -5 -5 -5 -4 -4 -4 ------- Run | Jun Mat Min Mat Min Exi Min Mat Gar Mat Fac Gar Fac DSF Fac Was Fac Gar Fac Fac Was Fac Peak Influence 3329 | . 284 195 459 302 . 309 486 2372 1207 459 1743 914 807 725 224 1724 3329 1976 1100 387 732 Initial 1747 | . . 63 . 108 . . . 124 1156 405 251 914 643 423 202 16 1206 1747 1100 385 261 Average 755 | . 124 66 241 192 . 173 219 1222 919 321 1185 914 661 508 114 577 2531 1791 1100 374 277 Maximum Alert Level 5 | . 1 . 2 1 . 1 2 5 4 2 5 3 3 3 1 5 5 5 4 1 3 Low Security (%) 27 | 100 83 100 24 55 . 57 57 2 . 10 . . . . 69 35 . . . . 39 Level 1 25 | . 16 . 71 44 . 42 38 11 . 59 1 . . 24 30 9 . . . 100 39 Level 2 12 | . . . 4 . . . 3 11 4 30 8 . 90 62 . 23 . . . . 19 Level 3 10 | . . . . . . . . 23 89 . 41 100 9 13 . 7 . . . . . Level 4 6 | . . . . . . . . 20 6 . 30 . . . . 20 9 . 100 . . Level 5 17 | . . . . . . . . 30 . . 17 . . . . 3 90 87 . . . High Security . | . . . . . . . . . . . . . . . . . . 12 . . . Max Security . | . . . . . . . . . . . . . . . . . . . . . . Squads Dispatched 61 | . 2 . 4 . . . 5 . 5 7 . . 1 4 . 11 . 10 . . 12 Investigation 14 | . 1 . 3 . . . . . 1 3 . . . 1 . 4 . . . . 1 Extermination 11 | . . . . . . . . . . 2 . . . 2 . . . 1 . . 6 Reinforcement 20 | . 1 . 1 . . . 2 . 3 2 . . 1 . . 4 . 1 . . 5 Assault 11 | . . . . . . . . . 1 . . . . 1 . 1 . 8 . . . Garrison 5 | . . . . . . . 3 . . . . . . . . 2 . . . . . Intercept . | . . . . . . . . . . . . . . . . . . . . . . Searches Triggered 1 | . . . . . . . . . . . . . . . . . . . . . 1 Construction Impeded 5 | . . . . . . . 1 . . 1 . . . . . 1 . . . . 2 Haulers Reinforced . | . . . . . . . . . . . . . . . . . . . . . . Active Scanning Responses . | . . . . . . . . . . . . . . . . . . . . . . Cargo Convoy Interrupts 2 | . . . . . . . . . . . . . . 1 . . . . . . 1 Stealth | -11 -10 -10 -9 -9 -9 -8 -8 -8 -8 -7 -7 -6 -6 -5 -5 -5 -5 -5 -4 -4 -4 --------- Run | Jun Mat Min Mat Min Exi Min Mat Gar Mat Fac Gar Fac DSF Fac Was Fac Gar Fac Fac Was Fac Distress Signals 15 | . . 1 8 . . . 2 . . 1 . . . . . 2 . . . . 1 Communications Jammed 18 | . . . . . . . . . . . . . . . . . . . . . 18 Distress Signals 18 | . . . . . . . . . . . . . . . . . . . . . 18 Times Spotted 491 | . 20 13 53 14 . 10 42 35 32 16 29 . 11 31 6 36 37 29 . 5 72 Peak Tracking Total 11 | . 5 3 6 3 . 4 5 7 6 4 3 . 4 7 3 9 9 9 . 2 11 Tactical Retreats 31 | . 1 1 2 . . . 3 4 . 1 1 . . . . . . . . . 18 Traps | -11 -10 -10 -9 -9 -9 -8 -8 -8 -8 -7 -7 -6 -6 -5 -5 -5 -5 -5 -4 -4 -4 ------- Run | Jun Mat Min Mat Min Exi Min Mat Gar Mat Fac Gar Fac DSF Fac Was Fac Gar Fac Fac Was Fac Traps Triggered 40 | . 1 1 1 . . . . 14 1 2 6 . . 5 . 1 4 . 1 . 3 Indirectly . | . . . . . . . . . . . . . . . . . . . . . . Trap Hack Attempts . | . . . . . . . . . . . . . . . . . . . . . . Triggered . | . . . . . . . . . . . . . . . . . . . . . . Disarmed . | . . . . . . . . . . . . . . . . . . . . . . Reprogrammed . | . . . . . . . . . . . . . . . . . . . . . . Reused . | . . . . . . . . . . . . . . . . . . . . . . Traps Extracted 4 | . . 4 . . . . . . . . . . . . . . . . . . . Installed . | . . . . . . . . . . . . . . . . . . . . . . Triggered 1 | . . . . . . . . . . . . . . 1 . . . . . . . Most Traps Carried 4 | . . 4 4 4 4 4 4 4 . . . . . . . . . . . . . Machines | -11 -10 -10 -9 -9 -9 -8 -8 -8 -8 -7 -7 -6 -6 -5 -5 -5 -5 -5 -4 -4 -4 ---------- Run | Jun Mat Min Mat Min Exi Min Mat Gar Mat Fac Gar Fac DSF Fac Was Fac Gar Fac Fac Was Fac Machines Disabled 61 | . 2 1 3 3 . 3 . 13 1 . 12 . 1 7 . 5 7 2 . . 1 Max in Single Turn 3 | . 1 1 1 . . 2 . 2 1 . 2 . 1 3 . . 1 2 . . 1 Garrison Access 1 | . . . . . . . . . . . . . . . . . . . . . 1 Garrison Relay 13 | . . . . . . . . 4 . . 5 . . . . . 4 . . . . Phase Generator 1 | . . . . . . . . 1 . . . . . . . . . . . . . Machines Repaired . | . . . . . . . . . . . . . . . . . . . . . . Machines Sabotaged . | . . . . . . . . . . . . . . . . . . . . . . Overloaded Fab Kills . | . . . . . . . . . . . . . . . . . . . . . . Hacking | -11 -10 -10 -9 -9 -9 -8 -8 -8 -8 -7 -7 -6 -6 -5 -5 -5 -5 -5 -4 -4 -4 --------- Run | Jun Mat Min Mat Min Exi Min Mat Gar Mat Fac Gar Fac DSF Fac Was Fac Gar Fac Fac Was Fac Machines Accessed 84 | . 9 1 15 . 2 . 12 3 4 6 1 1 . 4 . 4 1 4 . . 17 Terminals 51 | . 7 . 9 . . . 7 3 4 2 1 1 . . . 2 1 3 . . 11 Fabricators 3 | . . . . . . . . . . 2 . . . 1 . . . . . . . Repair Stations 8 | . . . 2 . . . 1 . . 1 . . . 1 . 1 . 1 . . 1 Recycling Units 10 | . 2 . 2 . . . 2 . . . . . . 1 . . . . . . 3 Scanalyzers 4 | . . . 2 . . . 1 . . . . . . 1 . . . . . . . Garrison Access 5 | . . . . . . . 1 . . 1 . . . . . 1 . . . . 2 Total Hacks 271 | . 31 1 63 . 8 . 47 6 15 17 2 1 . 11 . 9 2 10 . . 48 Successful 134 | . 8 1 38 . 8 . 31 2 6 7 1 1 . 5 . 2 1 5 . . 18 Failed 137 | . 23 . 25 . . . 16 4 9 10 1 . . 6 . 7 1 5 . . 30 Catastrophic 21 | . 2 . 1 . . . 4 2 3 2 . . . . . 2 . . . . 5 Database Lockouts . | . . . . . . . . . . . . . . . . . . . . . . Manual 130 | . 15 . 35 . . . 15 . 5 11 . . . 6 . 2 . . . . 41 Terminals 174 | . 25 . 45 . . . 30 6 15 6 2 1 . . . 7 2 4 . . 31 Fabricators 8 | . . . . . . . . . . 7 . . . 1 . . . . . . . Repair Stations 29 | . . . 9 . . . 6 . . 2 . . . 2 . 1 . 6 . . 3 Recycling Units 34 | . 6 . 5 . . . 4 . . . . . . 7 . . . . . . 12 Scanalyzers 9 | . . . 4 . . . 4 . . . . . . 1 . . . . . . . Garrison Access 8 | . . . . . . . 3 . . 2 . . . . . 1 . . . . 2 Terminal Hacks 60 | . 5 1 16 . 8 . 15 2 4 1 1 1 . . . 1 1 1 . . 3 Record 8 | . . . . . 8 . . . . . . . . . . . . . . . . Part Schematic 3 | . 1 . 1 . . . 1 . . . . . . . . . . . . . . Robot Analysis 2 | . 1 . 1 . . . . . . . . . . . . . . . . . . Prototype ID Bank 2 | . . . 1 . . . 1 . . . . . . . . . . . . . . Open Door 3 | . . 1 . . . . . . . . . . . . . . 1 1 . . . Open DSF 1 | . . . . . . . . . . . . 1 . . . . . . . . . Branch Access Points 3 | . 1 . 1 . . . 1 . . . . . . . . . . . . . . Emergency Access Points 4 | . . . 1 . . . . 1 . 1 1 . . . . . . . . . . Terminal Index 3 | . . . 2 . . . . . . . . . . . . . . . . . 1 Alert Level 2 | . . . . . . . 2 . . . . . . . . . . . . . . Unreport Threat 9 | . . . 2 . . . 2 . 3 . . . . . . 1 . . . . 1 Locate Traps 4 | . 1 . 1 . . . 2 . . . . . . . . . . . . . . Patrol Status 1 | . . . . . . . 1 . . . . . . . . . . . . . . Recall Investigation 1 | . . . 1 . . . . . . . . . . . . . . . . . . Hauler Manifests 1 | . . . . . . . 1 . . . . . . . . . . . . . . Registered Components 2 | . . . 1 . . . 1 . . . . . . . . . . . . . . Zone Layout 10 | . 1 . 4 . . . 3 . 1 . . . . . . . . . . . 1 Garrison Registry 1 | . . . . . . . . 1 . . . . . . . . . . . . . Fabricator Hacks 1 | . . . . . . . . . . . . . . 1 . . . . . . . Build 1 | . . . . . . . . . . . . . . 1 . . . . . . . Repair Station Hacks 19 | . . . 5 . . . 6 . . 2 . . . 1 . . . 4 . . 1 Scan Component 11 | . . . 3 . . . 3 . . 1 . . . 1 . . . 2 . . 1 Repair 8 | . . . 2 . . . 3 . . 1 . . . . . . . 2 . . . Recycling Unit Hacks 5 | . 1 . 2 . . . 1 . . . . . . 1 . . . . . . . Retrieve Components 5 | . 1 . 2 . . . 1 . . . . . . 1 . . . . . . . Scanalyzer 8 | . . . 4 . . . 4 . . . . . . . . . . . . . . Insert Component 5 | . . . 3 . . . 2 . . . . . . . . . . . . . . Analyze 3 | . . . 1 . . . 2 . . . . . . . . . . . . . . Garrison Access Hacks 6 | . . . . . . . 1 . . 2 . . . . . 1 . . . . 2 Unlock Access 4 | . . . . . . . 1 . . 1 . . . . . 1 . . . . 1 Seal Access 1 | . . . . . . . . . . . . . . . . . . . . . 1 Coupler Status 1 | . . . . . . . . . . 1 . . . . . . . . . . . Unauthorized Hacks 35 | . 2 . 11 . . . 4 . 2 2 . . . 2 . . . . . . 12 Terminals 25 | . 2 . 8 . . . 3 . 2 1 . . . . . . . . . . 9 Track 7 | . 1 . 3 . . . . . 1 . . . . . . . . . . . 2 Assimilate 2 | . . . 1 . . . . . . . . . . . . . . . . . 1 Botnet 13 | . . . 3 . . . 3 . . 1 . . . . . . . . . . 6 Disrupt 1 | . . . . . . . . . 1 . . . . . . . . . . . . Operators 2 | . 1 . 1 . . . . . . . . . . . . . . . . . . Fabricators 1 | . . . . . . . . . . 1 . . . . . . . . . . . Fabnet 1 | . . . . . . . . . . 1 . . . . . . . . . . . Repair Stations . | . . . . . . . . . . . . . . . . . . . . . . Recycling Units 9 | . . . 3 . . . 1 . . . . . . 2 . . . . . . 3 Reject 4 | . . . 1 . . . . . . . . . . 1 . . . . . . 2 Mask 5 | . . . 2 . . . 1 . . . . . . 1 . . . . . . 1 Scanalyzers . | . . . . . . . . . . . . . . . . . . . . . . Garrison Access . | . . . . . . . . . . . . . . . . . . . . . . Data Cores Recovered 1 | . . . . . . . . . 1 . . . . . . . . . . . . Used 1 | . . . . . . . . . 1 . . . . . . . . . . . . Hacking Detections 72 | . 9 . 13 . . . 12 2 4 5 1 . . 3 . 4 1 3 . . 15 Full Trace Events 10 | . 1 . 4 . . . . 1 . 1 . . . . . 2 . . . . 1 Feedback Events . | . . . . . . . . . . . . . . . . . . . . . . Feedback Blocked . | . . . . . . . . . . . . . . . . . . . . . . Robot Schematics Acquired . | . . . . . . . . . . . . . . . . . . . . . . Robots Built 1 | . . . . . . . . . . . . . . 1 . . . . . . . Authchips . | . . . . . . . . . . . . . . . . . . . . . . Time 40 | . . . . . . . . . . . . . . 40 . . . . . . . Total Robot Build Rating 1 | . . . . . . . . . . . . . . 1 . . . . . . . Part Schematics Acquired 6 | . 1 . 2 . . . 3 . . . . . . . . . . . . . . Parts Built . | . . . . . . . . . . . . . . . . . . . . . . Authchips . | . . . . . . . . . . . . . . . . . . . . . . Time . | . . . . . . . . . . . . . . . . . . . . . . Total Part Build Rating . | . . . . . . . . . . . . . . . . . . . . . . Parts Repaired 8 | . . . 2 . . . 3 . . 1 . . . . . . . 2 . . . Time 357 | . . . 91 . . . 102 . . 19 . . . . . . . 145 . . . Parts Recycled . | . . . . . . . . . . . . . . . . . . . . . . Recycled Matter . | . . . . . . . . . . . . . . . . . . . . . . Retrieved Matter . | . . . . . . . . . . . . . . . . . . . . . . Retrieved Components 33 | . . . 19 . . . 5 . . . . . . 9 . . . . . . . Parts Scanalyzed 3 | . . . 1 . . . 2 . . . . . . . . . . . . . . Part Schematics Acquired 3 | . . . 1 . . . 2 . . . . . . . . . . . . . . Parts Damaged . | . . . . . . . . . . . . . . . . . . . . . . Bothacking | -11 -10 -10 -9 -9 -9 -8 -8 -8 -8 -7 -7 -6 -6 -5 -5 -5 -5 -5 -4 -4 -4 ------------ Run | Jun Mat Min Mat Min Exi Min Mat Gar Mat Fac Gar Fac DSF Fac Was Fac Gar Fac Fac Was Fac Used RIF Installer 4 | . . . . . . . . 2 . . 1 . . . . . 1 . . . . Robot Detection 1 | . . . . . . . . 1 . . . . . . . . . . . . . Watcher Feeds 1 | . . . . . . . . . . . 1 . . . . . . . . . . Program Shield 1 | . . . . . . . . . . . . . . . . . 1 . . . . Robots Hacked 66 | . . . . . . . . . . . 8 . 5 16 6 . 4 12 . 6 9 Non-combat 18 | . . . . . . . . . . . 1 . . 8 . . . 1 . . 8 Combat 48 | . . . . . . . . . . . 7 . 5 8 6 . 4 11 . 6 1 Robot Hacks Applied 76 | . . . . . . . . . . . 8 . 5 17 13 . 3 12 . 9 9 parse_system 4 | . . . . . . . . . . . . . . . . . . 3 . . 1 generate_echo 1 | . . . . . . . . . . . . . . 1 . . . . . . . find_chute 2 | . . . . . . . . . . . . . . 2 . . . . . . . ignore_repairs 1 | . . . . . . . . . . . . . . . . . . . . . 1 map_walls 2 | . . . . . . . . . . . . . . . . . . 1 . . 1 map_earth 1 | . . . . . . . . . . . . . . . . . . . . . 1 locate_stockpiles 1 | . . . . . . . . . . . . . . 1 . . . . . . . find_recycling 1 | . . . . . . . . . . . . . . . . . . . . . 1 ignore_parts 2 | . . . . . . . . . . . . . . 2 . . . . . . . purge_threat 1 | . . . . . . . . . . . . . . . . . . . . . 1 mark_security 1 | . . . . . . . . . . . . . . 1 . . . . . . . relay_feed 1 | . . . . . . . . . . . . . . . . . . . . . 1 ignore_targets 22 | . . . . . . . . . . . . . . . 13 . . . . 9 . link_fov 1 | . . . . . . . . . . . . . . 1 . . . . . . . reboot_system 1 | . . . . . . . . . . . . . . . . . . . . . 1 go_dormant 1 | . . . . . . . . . . . . . . 1 . . . . . . . formatsys_high 33 | . . . . . . . . . . . 8 . 5 8 . . 3 8 . . 1 Relay Couplers Released 51 | . . . . . . . . 17 . . 18 . . . . . 16 . . . . Machine Destruction 51 | . . . . . . . . 17 . . 18 . . . . . 16 . . . . Attached 28 | . . . . . . . . 2 . 2 5 . 3 4 . 1 4 4 . . 3 Fabnet Peak Effective % 3 | . . . . . . . . . . . . 3 3 1 1 1 1 1 . . . Autooverrided 2 | . . . . . . . . . . . . . . . . . 1 1 . . . Robots Rewired 4 | . . . . . . . . 3 . . . . . 1 . . . . . . . Allies Hacked . | . . . . . . . . . . . . . . . . . . . . . . Hacks Repelled . | . . . . . . . . . . . . . . . . . . . . . . Allies | -11 -10 -10 -9 -9 -9 -8 -8 -8 -8 -7 -7 -6 -6 -5 -5 -5 -5 -5 -4 -4 -4 -------- Run | Jun Mat Min Mat Min Exi Min Mat Gar Mat Fac Gar Fac DSF Fac Was Fac Gar Fac Fac Was Fac Total Allies 63 | . . . . 2 . . . 3 . . 8 . 5 10 19 . 5 9 . . 2 Largest Group 21 | . . . . 2 . . . 3 3 . 6 3 6 6 21 19 9 10 5 5 3 Highest-Rated Group 756 | . . . . 49 . . . 48 48 . 141 51 198 146 756 702 373 356 213 213 137 Highest-Rated Ally 90 | . . . . 31 . . . 16 16 . 32 19 90 49 50 50 50 49 49 49 49 Total Orders 16 | . . . . . . . . . . . 4 . . 7 1 . 2 . . . 2 STAY 5 | . . . . . . . . . . . 2 . . 1 . . . . . . 2 ROAM 1 | . . . . . . . . . . . . . . 1 . . . . . . . FOLLOW 4 | . . . . . . . . . . . 1 . . 3 . . . . . . . GUARD 2 | . . . . . . . . . . . 1 . . . 1 . . . . . . AID 2 | . . . . . . . . . . . . . . . . . 2 . . . . COLLECT 2 | . . . . . . . . . . . . . . 2 . . . . . . . Ally Attacks 800 | . . . . 1 . . . . 29 . 21 . 31 69 222 185 61 84 . 92 5 Total Damage 22390 | . . . . 269 . . . . 290 . 490 . 454 1358 4732 7711 1545 2464 . 2896 181 Kills 108 | . . . . 3 . . . . 3 . 3 . 2 12 8 45 14 14 . 4 . Allies Corrupted 6 | . . . . . . . . . . . . . . . . . . 2 . 1 3 Allies Melted . | . . . . . . . . . . . . . . . . . . . . . . Intel | -11 -10 -10 -9 -9 -9 -8 -8 -8 -8 -7 -7 -6 -6 -5 -5 -5 -5 -5 -4 -4 -4 ------- Run | Jun Mat Min Mat Min Exi Min Mat Gar Mat Fac Gar Fac DSF Fac Was Fac Gar Fac Fac Was Fac Robot Analysis Total 2 | . 1 . 1 . . . . . . . . . . . . . . . . . . Derelict Logs Recovered 4 | . . 2 . 2 . . . . . . . . . . . . . . . . . Drone Launches . | . . . . . . . . . . . . . . . . . . . . . . Drone Recoveries . | . . . . . . . . . . . . . . . . . . . . . . Exploration | -11 -10 -10 -9 -9 -9 -8 -8 -8 -8 -7 -7 -6 -6 -5 -5 -5 -5 -5 -4 -4 -4 ------------- Run | Jun Mat Min Mat Min Exi Min Mat Gar Mat Fac Gar Fac DSF Fac Was Fac Gar Fac Fac Was Fac Turns Passed 27979 | 5 1103 1421 2037 1018 705 859 2565 2939 1121 1333 2309 9 289 1850 755 552 2664 1057 27 371 2990 Spaces Moved 16213 | 5 649 818 887 569 434 484 863 1147 468 609 1209 5 134 881 275 203 994 341 15 165 5058 Core 14 | . . . . . . . . . . . 9 . . . . . . . . . 5 Treads 8907 | . 526 818 887 569 434 484 863 847 . . 136 5 134 881 275 203 994 341 15 165 330 Legs 909 | 5 123 . . . . . . 300 468 13 . . . . . . . . . . . Wheels 1660 | . . . . . . . . . . 596 1064 . . . . . . . . . . Hover . | . . . . . . . . . . . . . . . . . . . . . . Flight 4723 | . . . . . . . . . . . . . . . . . . . . . 4723 Fastest Speed 31 | 120 120 152 155 155 155 155 156 120 190 145 145 170 160 160 170 255 240 240 166 166 31 Average Speed 143 | 120 152 160 177 158 159 165 233 219 190 151 159 170 169 174 248 255 248 240 166 166 40 Slowest Speed 1750 | 120 160 240 240 235 235 235 240 240 470 470 1750 170 170 255 255 255 255 240 166 166 520 Overloaded Moves . | . . . . . . . . . . . . . . . . . . . . . . Propulsion Burnouts . | . . . . . . . . . . . . . . . . . . . . . . Robots Hopped 68 | . . . . . . . . . . . . . . . . . 2 . . . 66 Cave-ins Triggered . | . . . . . . . . . . . . . . . . . . . . . . Exploration Rate (%) 61 | 2 98 99 76 98 90 97 66 86 40 12 97 . 78 17 89 9 74 8 1 81 63 Regions Visited 21 Branch Regions 4 Pre-discovered Areas 2 | . . 1 . . 1 . . . . . . . . . . . . . . . . Known Exits Taken 7 | . 1 . 1 . . . 1 . 1 1 . 1 . . . 1 . . . . . Unknown Exits Taken 6 | 1 . 1 . 1 1 1 . . . . . . . . . . . 1 . . . Scrap Searched 7 | . . 2 . 2 . 3 . . . . . . . . . . . . . . . Spaces Dug 185 | . 3 . 23 . . 13 2 1 1 6 12 . 2 12 . . 29 3 . . 78 Terrain Destroyed 1157 | . 44 3 61 8 . 60 86 196 33 39 94 . 25 101 1 3 150 44 . 2 207 Melee 33 | . 3 . 8 . . . 2 1 . 6 1 . . . . . . . . . 12 Projectile 104 | . . . 2 . . . 8 . 1 . . . 2 13 1 3 4 5 . 2 63 AOE 1020 | . 41 3 51 8 . 60 76 195 32 33 93 . 23 88 . . 146 39 . . 132 Terrain Rammed . | . . . . . . . . . . . . . . . . . . . . . . Walls Destroyed . | . . . . . . . . . . . . . . . . . . . . . . Machines Disabled . | . . . . . . . . . . . . . . . . . . . . . . Actions | -11 -10 -10 -9 -9 -9 -8 -8 -8 -8 -7 -7 -6 -6 -5 -5 -5 -5 -5 -4 -4 -4 --------- Run | Jun Mat Min Mat Min Exi Min Mat Gar Mat Fac Gar Fac DSF Fac Was Fac Gar Fac Fac Was Fac Total 19675 | 4 726 888 1189 623 447 517 1263 1452 611 936 1490 6 183 1130 339 223 1137 548 18 231 5714 Wait 1292 | . 15 28 139 9 . . 178 36 54 223 72 . 3 126 7 2 50 150 1 8 191 Move 16066 | 4 648 817 886 568 433 483 862 1145 467 608 1207 4 133 881 274 202 989 340 15 164 4936 Hop 57 | . . . . . . . . . . . . . . . . . 1 . . . 56 Pick Up 238 | . 11 6 19 2 1 3 38 25 7 12 17 . 7 13 9 . 11 5 1 3 48 Fast Attach 173 | . 1 1 3 2 5 . 10 2 5 11 13 . 1 8 3 . . 2 . 5 101 Attach 68 | . . . 2 . . 2 3 8 . 4 5 2 5 8 3 . 5 2 1 . 18 Detach 16 | . . . . . . . 1 . 1 . 1 . . 1 1 . 2 . . . 9 Swap 212 | . 10 6 28 5 2 5 28 35 11 11 6 . 6 13 2 3 9 4 . 3 25 Drop 361 | . 11 7 19 4 6 1 44 32 15 16 27 . 8 6 17 1 8 3 . 10 126 Fire 878 | . 25 19 80 30 . 20 89 73 49 43 36 . 19 69 23 14 52 37 . 38 162 Melee 128 | . 3 . 8 . . . 9 19 . 7 63 . . . . . . . . . 19 Ram 1 | . . . . . . . . . . 1 . . . . . . . . . . . Kick 2 | . . . . . . . . . 2 . . . . . . . . . . . . Crush 39 | . 2 4 5 3 . 3 1 . . . . . . 2 . 1 . 2 . . 16 Escape Stasis 97 | . . . . . . . . 40 . . 42 . . . . . 9 . . . 6 Rewire 47 | . . . . . . . . 37 . . 1 . 1 3 . . 1 3 . . 1 Trap . | . . . . . . . . . . . . . . . . . . . . . . Miscellaneous . | . . . . . . . . . . . . . . . . . . . . . . Route ------- -11/Junkyard -10/Materials (discovered 4 exits: *Mat x3 / *Min) -10/Mines (discovered 2 exits: *Mat x2) -9/Materials (discovered 6 exits: *Mat x2 / *Min x2 / *Sto x2) -9/Mines (discovered 4 exits: *Mat x2 / *Exi / [*Zio]) -9/Exiles -8/Mines (discovered 2 exits: *Mat x2) -8/Materials (discovered 3 exits: *Fac x2 / Gar) -8/Garrison (discovered 3 exits: *Mat x3) -8/Materials -7/Factory (discovered 2 exits: [*Low] / Gar) -7/Garrison (discovered 4 exits: *Fac x3 / [*Fac]) -6/Factory -6/DSF -5/Factory -5/Waste -5/Factory -5/Garrison (discovered 3 exits: *Fac x3) -5/Factory (discovered 2 exits: [*Fac] / [*Ext]) -4/Factory -4/Waste -4/Factory (discovered 5 exits: [*Res x2] / *Upp x2 / Gar) History --------- Turn | Location | Event 1 | -11/Junkyard | Discovered new exit (range 2) 6 | -11/Junkyard | Entered Materials 149 | -10/Materials | Discovered new exit (range 3) 303 | -10/Materials | Build established: Mutant 463 | -10/Materials | Discovered new exit (range 10) 631 | -10/Materials | Discovered new exit (range 14) 703 | -10/Materials | Identified exit to Mines 1109 | -10/Materials | Entered Mines 1120 | -10/Mines | Met a Derelict who couldn't figure out how to use a Trap Extractor 1137 | -10/Mines | Met a Derelict bent on vengeance 1403 | -10/Mines | Learned Materials emergency access door positions 1452 | -10/Mines | A weapon hastily lodged in a ceiling crevice suddenly fell to the ground 1467 | -10/Mines | Learned location of Zion (-7) 1497 | -10/Mines | Discovered new exit (range 6) 1827 | -10/Mines | Discovered new exit (range 7) 2529 | -10/Mines | System corruption reached 10% 2530 | -10/Mines | Entered Materials 2530 | -9/Materials | Evolved 2 slots: Propulsion x1, Utility x1 2617 | -9/Materials | Identified exit to Mines 2617 | -9/Materials | Identified exit to Storage 3254 | -9/Materials | Discovered new exit (range 10) 4046 | -9/Materials | Build established: Scavenger-Mutant 4143 | -9/Materials | Repaired Broken Adv. Treads 4183 | -9/Materials | Repaired Hpw. Shotgun 4191 | -9/Materials | Discovered new exit (range 3) 4455 | -9/Materials | Build established: Mutant 4567 | -9/Materials | Entered Mines 4736 | -9/Mines | Discovered new exit (range 11) 4790 | -9/Mines | Learned Materials terminal intel 5042 | -9/Mines | Build established: Scavenger-Mutant 5109 | -9/Mines | Discovered new exit (range 7) 5130 | -9/Mines | Core integrity fell below 50% 5184 | -9/Mines | A Derelict revealed a hidden shortcut to a safe place 5205 | -9/Mines | Deemed a non-threat by the Exiles lab entrance 5205 | -9/Mines | Discovered new exit (range 5) 5585 | -9/Mines | Entered Exiles 5642 | -9/Exiles | Met 8R-AWN 5671 | -9/Exiles | Met EX-HEX 5718 | -9/Exiles | Met EX-BIN 5843 | -9/Exiles | Met EX-DEC 5925 | -9/Exiles | Visited The Gauntlet 6252 | -9/Exiles | Discovered new exit (range 10) 6290 | -9/Exiles | Entered Mines 6884 | -8/Mines | Discovered new exit (range 10) 6910 | -8/Mines | Discovered new exit (range 11) 7149 | -8/Mines | Entered Materials 7149 | -8/Materials | Evolved 2 slots: Propulsion x1, Utility x1 7150 | -8/Materials | Identified exit to Factory 7151 | -8/Materials | Loaded intel: 12 terminal locations 7184 | -8/Materials | Garrison activated, responded to threat 7606 | -8/Materials | Discovered exit to Factory (range 5) 8392 | -8/Materials | Repaired Hrd. Light Armor Plating 8437 | -8/Materials | Repaired Imp. Trap Extractor 8464 | -8/Materials | Repaired Lgt. Treads 8812 | -8/Materials | Identified exit to Garrison 9714 | -8/Materials | Entered Garrison 9808 | -8/Garrison | Triggered checkpoint 9976 | -8/Garrison | Triggered checkpoint 10116 | -8/Garrison | Triggered checkpoint 10179 | -8/Garrison | Triggered checkpoint 10191 | -8/Garrison | Triggered checkpoint 10282 | -8/Garrison | Triggered checkpoint 10510 | -8/Garrison | Triggered checkpoint 10760 | -8/Garrison | Discovered new exit (range 11) 10785 | -8/Garrison | Phase Generator disabled 11022 | -8/Garrison | Discovered new exit (range 15) 11097 | -8/Garrison | Installed Relay Interface Framework 11149 | -8/Garrison | Garrison Relay disabled 11199 | -8/Garrison | Triggered checkpoint 11257 | -8/Garrison | Garrison Relay disabled 11575 | -8/Garrison | Expanded RIF knowledge: Robot Detection 11644 | -8/Garrison | Discovered new exit (range 11) 11646 | -8/Garrison | Triggered checkpoint 11789 | -8/Garrison | Garrison Relay disabled 11897 | -8/Garrison | Identified exit to Materials 12408 | -8/Garrison | Triggered checkpoint 12435 | -8/Garrison | Garrison Relay disabled 12467 | -8/Garrison | Discovered exit to Materials (range 79) 12467 | -8/Garrison | Discovered exit to Materials (range 69) 12467 | -8/Garrison | Discovered exit to Materials (range 23) 12653 | -8/Garrison | Entered Materials 12653 | -8/Materials | Accompanied by 3 allies 13053 | -8/Materials | First assault squad dispatched 13732 | -8/Materials | Discovered exit to Factory (range 14) 13753 | -8/Materials | Core integrity fell below 50% 13774 | -8/Materials | Entered Factory 13774 | -7/Factory | Evolved 2 slots: Utility x2 13805 | -7/Factory | Lost 6 parts (3n1u2w) 14069 | -7/Factory | Build established: Mutant 14177 | -7/Factory | Repaired Lgt. Nuclear Core 14386 | -7/Factory | Discovered new exit (range 5) 15073 | -7/Factory | Identified exit to Garrison 15107 | -7/Factory | Entered Garrison 15127 | -7/Garrison | Triggered checkpoint 15130 | -7/Garrison | Discovered new exit (range 14) 15233 | -7/Garrison | Triggered checkpoint 15265 | -7/Garrison | Triggered checkpoint 15279 | -7/Garrison | Triggered checkpoint 15297 | -7/Garrison | Triggered checkpoint 15432 | -7/Garrison | Discovered new exit (range 10) 15461 | -7/Garrison | Triggered checkpoint 15491 | -7/Garrison | Garrison Relay disabled 15793 | -7/Garrison | Lost 3 parts (1n2u) 16014 | -7/Garrison | Triggered checkpoint 16041 | -7/Garrison | Garrison Relay disabled 16202 | -7/Garrison | Discovered new exit (range 13) 16220 | -7/Garrison | Build established: Bothacker-Mutant 16307 | -7/Garrison | Spotted B-75 Beast 16390 | -7/Garrison | Triggered checkpoint 16405 | -7/Garrison | Garrison Relay disabled 16449 | -7/Garrison | Garrison Relay disabled 16616 | -7/Garrison | Triggered checkpoint 16637 | -7/Garrison | Garrison Relay disabled 16699 | -7/Garrison | Expanded RIF knowledge: Watcher Feeds 16719 | -7/Garrison | Discovered new exit (range 10) 17184 | -7/Garrison | Destroyed B-75 Beast 17416 | -7/Garrison | Entered Factory 17416 | -6/Factory | Accompanied by 3 allies 17416 | -6/Factory | Evolved 2 slots: Utility x2 17425 | -6/Factory | Identified exit to DSF 17425 | -6/Factory | Entered DSF 17425 | -6/DSF | Accompanied by 3 allies 17469 | -6/DSF | Additional patrols routed to DSF 17568 | -6/DSF | Discovered new exit (range 15) 17709 | -6/DSF | System corruption reached 10% 17714 | -6/DSF | Entered Factory 17714 | -5/Factory | Accompanied by 4 allies 17714 | -5/Factory | Evolved 2 slots: Power x1, Utility x1 17776 | -5/Factory | Fabricated A-02 Transporter (x1) 18041 | -5/Factory | Found Prototype Launcher 18041 | -5/Factory | Identified Tesla Bomb Launcher 18607 | -5/Factory | Destroyed 11 combat bots 18859 | -5/Factory | Cargo convoy interrupted 18914 | -5/Factory | First assault squad dispatched 19564 | -5/Factory | Sucked down chute 19564 | -5/Factory | Entered Waste 19595 | -5/Waste | 3 allies followed down the chute 19702 | -5/Waste | Spotted C-40 Crusher 19706 | -5/Waste | Spotted C-40 Crusher 19706 | -5/Waste | Spotted C-40 Crusher 19718 | -5/Waste | Spotted C-40 Crusher 19769 | -5/Waste | Allies destroyed C-40 Crusher 19795 | -5/Waste | Found Damper Plating 19808 | -5/Waste | Spotted C-40 Crusher 19811 | -5/Waste | Spotted C-40 Crusher 19926 | -5/Waste | Allies destroyed C-40 Crusher 19946 | -5/Waste | Warlord forces began an assault 19957 | -5/Waste | Allies destroyed C-40 Crusher 19959 | -5/Waste | Allies destroyed C-40 Crusher 19964 | -5/Waste | Allies destroyed C-40 Crusher 20040 | -5/Waste | Allies destroyed C-40 Crusher 20251 | -5/Waste | Discovered new exit (range 11) 20319 | -5/Waste | Entered Factory 20319 | -5/Factory | Accompanied by 19 allies 20619 | -5/Factory | First assault squad dispatched 20700 | -5/Factory | Garrison activated, responded to threat 20824 | -5/Factory | Identified exit to Garrison 20871 | -5/Factory | Entered Garrison 20871 | -5/Garrison | Accompanied by 9 allies 20898 | -5/Garrison | Triggered checkpoint 21105 | -5/Garrison | Triggered checkpoint 21108 | -5/Garrison | Triggered checkpoint 21110 | -5/Garrison | Spotted B-75 Beast 21123 | -5/Garrison | Triggered checkpoint 21131 | -5/Garrison | Triggered checkpoint 21145 | -5/Garrison | Destroyed B-75 Beast 21180 | -5/Garrison | Destroyed 12 combat bots 21224 | -5/Garrison | Destroyed 7 combat bots 21396 | -5/Garrison | Triggered checkpoint 21467 | -5/Garrison | Garrison Relay disabled 21500 | -5/Garrison | Expanded RIF knowledge: Program Shield 21802 | -5/Garrison | Triggered checkpoint 21961 | -5/Garrison | Discovered new exit (range 10) 22216 | -5/Garrison | Triggered checkpoint 22272 | -5/Garrison | Discovered new exit (range 14) 22418 | -5/Garrison | Garrison Relay disabled 22738 | -5/Garrison | Build established: Botlord-Mutant 22796 | -5/Garrison | Triggered checkpoint 22830 | -5/Garrison | Garrison Relay disabled 22906 | -5/Garrison | Discovered new exit (range 10) 23031 | -5/Garrison | Rescued a captive Derelict 23442 | -5/Garrison | Garrison Relay disabled 23535 | -5/Garrison | Entered Factory 23535 | -5/Factory | Accompanied by 5 allies 23738 | -5/Factory | Discovered new exit (range 15) 23812 | -5/Factory | Discovered new exit (range 6) 23835 | -5/Factory | First assault squad dispatched 24090 | -5/Factory | Repaired Broken Imp. Heavy Siege Treads 24395 | -5/Factory | Repaired Imp. Heavy Armor Plating 24461 | -5/Factory | High security lockdown imminent 24541 | -5/Factory | High security lockdown engaged 24592 | -5/Factory | Entered another Factory area 24592 | -4/Factory | Accompanied by 5 allies 24592 | -4/Factory | Evolved 2 slots: Propulsion x2 24619 | -4/Factory | Sucked down chute 24619 | -4/Factory | Entered Waste 24620 | -4/Waste | 1 allies followed down the chute 24634 | -4/Waste | EMP discharged 24668 | -4/Waste | Found Prototype Device 24668 | -4/Waste | Identified Beam Splitter 24672 | -4/Waste | Spotted C-40 Crusher 24672 | -4/Waste | Spotted C-40 Crusher 24672 | -4/Waste | Spotted C-40 Crusher 24675 | -4/Waste | 7 allies followed down the chute 24691 | -4/Waste | Spotted C-40 Crusher 24706 | -4/Waste | Spotted C-40 Crusher 24727 | -4/Waste | Spotted C-40 Crusher 24728 | -4/Waste | Allies destroyed C-40 Crusher 24734 | -4/Waste | EMP discharged 24737 | -4/Waste | Build established: Bothacker-Mutant 24744 | -4/Waste | Allies destroyed C-40 Crusher 24744 | -4/Waste | Allies destroyed C-40 Crusher 24748 | -4/Waste | Found Damper Plating 24780 | -4/Waste | Destroyed C-40 Crusher 24834 | -4/Waste | EMP discharged 24920 | -4/Waste | Discovered new exit (range 16) 24934 | -4/Waste | EMP discharged 24990 | -4/Waste | Entered Factory 24990 | -4/Factory | Accompanied by 3 allies 25552 | -4/Factory | Discovered new exit (range 3) 25654 | -4/Factory | Build established: Bothacker-Sprinter 25829 | -4/Factory | Discovered new exit (range 7) 25891 | -4/Factory | Identified exit to Garrison 26237 | -4/Factory | Discovered new exit (range 15) 26255 | -4/Factory | Identified exit to Upper Caves 26365 | -4/Factory | Spotted B-86 Titan 26395 | -4/Factory | Build established: Sprinter 26508 | -4/Factory | Discovered exit to Upper Caves (range 6) 26618 | -4/Factory | Found Prototype Processor 26844 | -4/Factory | Identified Exp. Terrain Scan Processor 27490 | -4/Factory | Search patrols dispatched 27508 | -4/Factory | Spotted Striker 27508 | -4/Factory | Spotted Striker 27509 | -4/Factory | Cargo convoy interrupted 27576 | -4/Factory | Destroyed Striker 27611 | -4/Factory | Core integrity fell below 50% 27628 | -4/Factory | Destroyed Striker 27639 | -4/Factory | Core integrity fell below 20% 27649 | -4/Factory | System corruption reached 10% 27720 | -4/Factory | Lost 16 parts (3p3n6u4w) 27874 | -4/Factory | Lost 3 parts (2p1w) 27980 | -4/Factory | Destroyed by H-77 Assassin with High-powered Shotgun Last Messages --------------- 27967_ U-05 Engineer lays Concrete. 27967_ U-05 Engineer forms the Earth. 27967_ U-05 Engineer lays Concrete. 27968_ U-05 Engineer builds a Wall. 27968_ U-05 Engineer lays Concrete. 27968_ U-05 Engineer forms the Earth. 27968_ U-05 Engineer lays Concrete. 27968_ U-05 Engineer builds a Wall. 27969_ U-05 Engineer lays Concrete. 27969_ Acquired 118 matter. 27969_ U-05 Engineer forms the Earth. 27969_ U-05 Engineer builds a Wall. 27978_ System corrupted: Antimatter Reactor rejected. 27978_ K-01 Serf destroyed. 27979_ C-30 ARC bursts open, deploying its payload. 27979_ H-77 Assassin unfolds itself. 27979_ K-01 Serf collects debris. 27980_ Slug penetrates K-01 Serf. 27980_ K-01 Serf destroyed. 27980_ Slug penetrates Wall. Map ----- +----------------------------------------------------+ | # #### #??# "" ! #???? | | # "" [ #??# #??# #???? | | # "" #??# #################???? | | # """ #??# ## #????????? | | # """ #### ## #?######## | | + """ !!! + # #?# # | | # !!! ""#### + """ #?# ! # | | # !!! T"#??# # """ """ #?# # | | # [ ""#??# # """ Y" #?# # | | # #??# # """ #?#! # | | ######+#####+#######+#### # #?# # | | ###########?####/### | | ########?????????????# #? | | #????????????????????# #? | | #????????????????????# #? | | #???????????####?????## ##? | | #####+############ #?####?????? ???????# #?? | | ## ! #??## # ###T ###???? ???????# #?? | | ## """ #### # #??? ????????# ?? | | ##! """ ######## w #??? ????????# ?? | | ## """ + + ! ?????????# ?? | | ## ######## p #?? ?????????# ?? | | ## """ #?### # u = #?? ?????????? ?? | | ## """ #??### ########u%* #?? ?????????? ?? | | ## """ #????######???#*! ###+############ ? | | ## ##????????????#@%! t | | ################????????# = | | # ########## | | # ! """""" ## [ h """ """ """ """ """ ?? | | + """""" ## kh """ """ """ ""????" ?? | | # """""" ## " % """ """ """ """ ""? ?? | | # """""" ## "" | | # ## >G """ """ """ """ ""???? | | ########+######## ! "" """ """ """ """ "F???? | | #??### " """ """ """ """ """"" | | ?? # | | ? # """"" | | """" # """"" #########+#############+######?? | | """" # """ #??????????????????????????????? | | """" # #??????????????????????????????? | | """" # """"" #??????????????????????????????? | | # """"" #??????????????????????????????? | | "" # """ [!!#??????????????????????????????? | | R # [!!#??????????????????????????????? | | "" + !! ##############?????????????????? | | "" # # #?????????????????? | | # !] # "" #?????????????????? | | ###### ]= # """#?????????????????? | | # S"#?????????????????? | | # #?????????????????? | +----------------------------------------------------+ Best States ------------- Heat Dissipation 99 Energy Generation 37 Energy Capacity 900 Matter Stores 300 Matter Capacity 300 Sight Range 16 Robot Scan Range 16 Terrain Scan Density 10 Jamming Range 16 Corruption Containment 8 Armor Coverage 3200 Resistance: EM 90 Evasion (%) 75 Targeting Accuracy 8 Target Analysis 5 Recoil Reduction 6 Kinecelleration 30 Offensive Hacking 12 Defensive Hacking 12 Relay Coupler Types 6 Relay Coupler Value 156 Trap Extractor Capacity 6 Item Schematics ----------------- Huge Storage Unit | -10/Materials | Hacked Arm. Wheel | -9/Materials | Hacked Adv. Treads | -9/Materials | Scanalyzed Lrn. Tractor Beam | -8/Materials | Hacked Mak. Power Source | -8/Materials | Scanalyzed Imp. Sensor Array | -8/Materials | Scanalyzed Robot Schematics ------------------ None Fabricated ------------ A-02 Transporter | x1 | -5/Factory | Preloaded Alien Tech Used ----------------- None Achievements -------------- Generalissimo Turtlemind Challenges ------------ None Game ------ Seed DisruptorHelicalRailgun Manual? 0 Play Time 06:00:01 Cumulative 108.1 hours Start 2023.06.19 @ 14:51:49 End 2023.06.20 @ 00:31:26 Sessions 3 Manual Loads 0 Difficulty Rogue Special Mode None Game No. 51 Rogue 49 Adventurer 2 Explorer 0 Win Type - Total 3 Types 3/0/0/0/0/0/0/0/0 Lore% 54 Gallery% 65 Achievement% 53 Wizard Run 0 Options --------- ASCII 0 Keyboard 0 Movement Numpad Keybinds 0 Fullscreen 1 Font 24/Smallcaps Map View 76x50 Tactical HUD 1 Map Filters NONE Filters NONE Steam 1 RUN: 11441e6a-800f-44e3-869a-0f773bc1eeb2